fUSD/lending_fUSD_20240329
["ID","MTS","AMOUNT","RATE_DAILY","PERIOD"]
[321003306,1711740643005,-0.00142653,0.00052,120]
[321003307,1711740643017,-346.43084872,0.00052,120]
[321003308,1711740643050,-10551.43864347,0.00052,120]
[321003309,1711740643060,-500.0,0.00052,120]
[321003310,1711740643070,-2070.64375654,0.00052,120]
[321003311,1711740643136,-3869.1401,0.00052,120]
[321003312,1711740643149,-1216.69192755,0.00052,120]
[321003313,1711740643165,-2723.37960937,0.00052,120]
[321003319,1711740645809,-154.377,0.00051464,120]
[321003320,1711740645820,-4404.71152286,0.00052,120]
[321003321,1711740645830,-2437.42170417,0.00052,4]
[321003322,1711740645839,-5781.24779688,0.00052,120]
[321003323,1711740645849,-5553.99628748,0.00052,120]
[321003324,1711740645865,-4368.60279496,0.00052,120]
[321003325,1711740645877,-2496.81441728,0.00052,120]
[321003326,1711740646031,-49272.98452196,0.00052,120]
[321003327,1711740646142,-67582.39193066,0.00052,120]
[321003328,1711740646152,-44346.49731622,0.00052,60]
[321003329,1711740646165,-343.67251217,0.00052,60]
[321003337,1711741752189,-180.87305966,0.00033,3]
[321003338,1711741752217,-69.12694034,0.00033,3]
[321003339,1711741772093,-175.5,0.00038356,2]
[321003340,1711741772114,-6605.33880902,0.00040344,2]
[321003341,1711741772134,-10330.82407661,0.00040345,4]
[321003342,1711741772154,-150.0,0.00040348,5]
[321003343,1711741772173,-3006.9218,0.0004035,2]
[321003344,1711741772631,-162.20300942,0.00040352,2]
[321003345,1711741772661,-1610.83296889,0.00040451,4]
[321003346,1711741772680,-315.65132578,0.00040452,4]
[321003347,1711741772698,-201.41606414,0.00040453,2]
[321003348,1711741772717,-3438.09294614,0.00040661,4]
[321003374,1711741832346,-990.21364132,0.0004066,2]
[321003376,1711741832359,-572.92685355,0.0004066,2]
[321003378,1711741832369,-1242.11965083,0.00040661,4]
[321003381,1711741832404,-927.00262819,0.00040661,4]
[321003382,1711741832463,-3980.79867666,0.00040661,4]
[321003383,1711741832473,-15041.4004,0.00040662,2]
[321003384,1711741832482,-168.02203023,0.00040862,2]
[321003385,1711741832491,-162.20300942,0.00042002,2]
[321003386,1711741832500,-162.20300942,0.00043651,2]
[321003387,1711741832510,-519.46,0.00044432,2]
[321003388,1711741832518,-170.0,0.000448,2]
[321003389,1711741832527,-162.20300942,0.00045301,2]
[321003390,1711741832537,-150.0,0.00046138,2]
[321003391,1711741832546,-250.0,0.00046421,120]
[321003392,1711741832555,-158.54,0.00046534,2]
[321003393,1711741832565,-180.0,0.00046553,2]
[321003394,1711741832575,-158.54,0.00046593,2]
[321003395,1711741832585,-158.54,0.00046651,2]
[321003396,1711741832595,-2300.34,0.00046659,2]
[321003397,1711741832606,-519.46,0.00046696,2]
[321003398,1711741832615,-155.51,0.00046701,15]
[321003399,1711741832624,-158.54,0.00046709,2]
[321003400,1711741832633,-158.54,0.00046767,2]
[321003401,1711741832644,-162.20300942,0.00046951,2]
[321003402,1711741832653,-540.95033334,0.00046993,2]
[321003403,1711741832662,-18683.42152967,0.00047083,2]
[321003404,1711741832671,-1713.80296152,0.00047092,4]
[321003405,1711741832681,-23890.0,0.00047093,2]
[321003406,1711741832690,-250.0,0.00047093,112]
[321003408,1711741832699,-156.02276821,0.00047391,30]
[321003409,1711741832707,-152.42209406,0.00047421,30]
[321003410,1711741832716,-250.0,0.00047519,120]
[321003411,1711741832726,-1055.79,0.00047558,120]
[321003412,1711741832734,-166.76,0.00047583,2]
[321003413,1711741832744,-1000.0,0.00047627,2]
[321003415,1711741832753,-986.48799922,0.00047633,2]
[321003416,1711741832762,-155.15508101,0.00047743,30]
[321003418,1711741832772,-155.0,0.00048,15]
[321003420,1711741832781,-438.73485429,0.00048062,4]
[321003422,1711741832790,-165.52512876,0.00048487,30]
[321003424,1711741832800,-177.21,0.00048511,2]
[321003426,1711741832809,-162.20300942,0.00048601,2]
[321003428,1711741832818,-1204.25,0.00048769,120]
[321003429,1711741832829,-500.0,0.00048883,2]
[321003430,1711741832838,-500.0,0.00048883,2]
[321003431,1711741832847,-1362.85766619,0.000489,4]
[321003432,1711741832856,-519.46,0.0004896,2]
[321003433,1711741832865,-1200.0,0.00049,4]
[321003434,1711741832874,-12976.11,0.00049154,2]
[321003435,1711741832883,-7670.52,0.00049154,2]
[321003436,1711741832892,-158.24,0.00049181,2]
[321003437,1711741832901,-9351.05341888,0.0004929,30]
[321003438,1711741832911,-2300.34,0.00049399,2]
[321003439,1711741832920,-159.93084906,0.00049506,30]
[321003440,1711741832929,-5743.54502978,0.00049798,2]
[321003441,1711741832938,-335.2434,0.000498,2]
[321003442,1711741832947,-500.0,0.000498,2]
[321003443,1711741832956,-658.6449,0.000498,2]
[321003444,1711741832965,-22.95899788,0.000498,2]
[321003445,1711741832978,-24604.97141346,0.000498,2]
[321003446,1711741832987,-1756.46,0.0004985,30]
[321003447,1711741832997,-818.18,0.0004985,30]
[321003448,1711741833007,-168.77,0.0004989,2]
[321003449,1711741833016,-155.41385466,0.00049896,4]
[321003450,1711741833026,-155.0,0.00049897,4]
[321003451,1711741833035,-216.65684513,0.00049897,4]
[321003452,1711741833045,-192.17743227,0.00049897,4]
[321003453,1711741833054,-374.45200813,0.00049897,4]
[321003454,1711741833064,-485.09113806,0.00049898,4]
[321003455,1711741833073,-283.96133117,0.00049898,2]
[321003456,1711741833084,-294.57969777,0.00049898,4]
[321003457,1711741833093,-308.47156974,0.00049898,4]
[321003458,1711741833102,-484.31503574,0.00049898,4]
[321003459,1711741833112,-360.91813006,0.00049898,4]
[321003460,1711741833121,-20841.47048992,0.00049898,4]
[321003461,1711741833131,-410.8712008,0.00049898,4]
[321003462,1711741833139,-204.01338499,0.00049898,4]
[321003463,1711741833149,-155.0,0.00049898,4]
[321003464,1711741833158,-436.91298742,0.00049898,4]
[321003465,1711741833168,-6355.0832516,0.00049899,4]
[321003466,1711741833177,-7736.0334,0.000499,2]
[321003467,1711741833186,-100000.0,0.000499,2]
[321003468,1711741833196,-1000.0,0.00049959,60]
[321003469,1711741833205,-161.51,0.00049987,30]
[321003470,1711741833214,-518.1,0.00049987,30]
[321003471,1711741833223,-347.71,0.00049987,30]
[321003472,1711741833232,-246.96,0.00049987,30]
[321003473,1711741833241,-416.02,0.00049987,30]
[321003474,1711741833249,-300.0,0.00049987,30]
[321003475,1711741833258,-371.66,0.00049987,30]
[321003476,1711741833267,-347.71,0.00049987,30]
[321003477,1711741833276,-518.1,0.00049987,30]
[321003478,1711741833285,-161.51,0.00049987,30]
[321003479,1711741833294,-416.02,0.00049987,30]
[321003480,1711741833304,-416.02,0.00049987,30]
[321003481,1711741833314,-249.68,0.00049987,60]
[321003482,1711741833325,-150.0,0.00049987,30]
[321003483,1711741833334,-225.23,0.00049987,30]
[321003484,1711741833343,-347.71,0.00049987,30]
[321003485,1711741833352,-161.51,0.00049987,30]
[321003486,1711741833363,-150.0,0.00049987,30]
[321003487,1711741833373,-150.0,0.00049987,30]
[321003488,1711741833382,-518.1,0.00049987,30]
[321003489,1711741833393,-416.02,0.00049987,30]
[321003490,1711741833403,-150.0,0.00049987,60]
[321003491,1711741833413,-150.0,0.00049987,30]
[321003492,1711741833422,-150.0,0.00049987,30]
[321003493,1711741833432,-518.1,0.00049987,30]
[321003494,1711741833441,-160.71,0.00049987,30]
[321003495,1711741833450,-347.71,0.00049987,30]
[321003496,1711741833460,-518.1,0.00049987,30]
[321003497,1711741833469,-150.0,0.00049987,30]
[321003498,1711741833478,-150.0,0.00049987,30]
[321003499,1711741833487,-389.56,0.00049987,30]
[321003500,1711741833496,-150.0,0.00049987,30]
[321003501,1711741833505,-347.71,0.00049987,30]
[321003502,1711741833514,-150.0,0.00049987,60]
[321003503,1711741833523,-518.1,0.00049987,30]
[321003504,1711741833533,-150.0,0.00049987,30]
[321003505,1711741833542,-150.0,0.00049987,60]
[321003506,1711741833553,-150.0,0.00049987,30]
[321003507,1711741833563,-347.71,0.00049987,30]
[321003508,1711741833573,-518.1,0.00049987,30]
[321003509,1711741833584,-150.0,0.00049987,30]
[321003510,1711741833593,-347.71,0.00049987,30]
[321003511,1711741833606,-150.0,0.00049987,30]
[321003512,1711741833615,-518.1,0.00049987,30]
[321003513,1711741833626,-347.71,0.00049987,30]
[321003514,1711741833636,-150.0,0.00049987,30]
[321003515,1711741833646,-518.1,0.00049987,30]
[321003516,1711741833655,-347.71,0.00049987,30]
[321003517,1711741833665,-1000.16952163,0.00049999,5]
[321003518,1711741833675,-26551.07116376,0.0005,4]
[321003519,1711741833684,-155.84062262,0.0005,4]
[321003520,1711741833693,-4940.6,0.0005,4]
[321003521,1711741833703,-19208.42968041,0.0005,30]
[321003522,1711741833712,-851.0,0.0005,16]
[321003523,1711741833721,-7066.63577671,0.0005,28]
[321003524,1711741833730,-1000.0,0.0005,30]
[321003525,1711741833739,-1000.0,0.0005,30]
[321003526,1711741833748,-1007.0,0.0005,30]
[321003527,1711741833757,-1007.73524964,0.0005,2]
[321003528,1711741833766,-22065.12726873,0.0005,120]
[321003529,1711741833774,-151.0,0.0005,120]
[321003530,1711741833783,-150.0,0.000502,10]
[321003531,1711741833792,-160.36143912,0.00050201,60]
[321003532,1711741833802,-154.90856067,0.00050226,60]
[321003533,1711741833811,-162.20300942,0.0005025,2]
[321003534,1711741833819,-150.0,0.00050261,30]
[321003535,1711741833829,-150.0,0.00050261,30]
[321003536,1711741833839,-150.0,0.00050261,30]
[321003537,1711741833848,-150.0,0.00050261,30]
[321003538,1711741833858,-152.42209407,0.00050304,60]
[321003539,1711741833867,-155.51,0.00050437,120]
[321003540,1711741833876,-169.07,0.00050532,2]
[321003541,1711741833885,-152.37906724,0.00050567,60]
[321003542,1711741833895,-5743.54502976,0.00050574,2]
[321003543,1711741833904,-24627.93041131,0.00050587,2]
[321003544,1711741833913,-150.0,0.00050635,7]
[321003545,1711741833922,-150.0,0.000507,10]
[321003546,1711741833931,-246.4488268,0.00050725,22]
[321003547,1711741833940,-150.0,0.00050745,7]
[321003548,1711741833949,-1000.0,0.00050781,64]
[321003549,1711741833958,-150.0,0.00050789,120]
[321003550,1711741833972,-150.0,0.0005079,7]
[321003551,1711741833981,-347.71,0.00050809,30]
[321003552,1711741833991,-518.1,0.00050809,30]
[321003553,1711741834001,-518.1,0.00050809,30]
[321003554,1711741834010,-347.71,0.00050809,30]
[321003555,1711741834019,-518.1,0.00050809,30]
[321003556,1711741834028,-347.71,0.00050809,30]
[321003557,1711741834038,-518.1,0.00050809,30]
[321003558,1711741834047,-347.71,0.00050809,30]
[321003559,1711741834056,-518.1,0.00050809,30]
[321003560,1711741834065,-518.1,0.00050809,30]
[321003561,1711741834075,-347.71,0.00050809,30]
[321003562,1711741834085,-347.71,0.00050809,30]
[321003563,1711741834094,-518.1,0.00050809,30]
[321003564,1711741834103,-518.1,0.00050809,30]
[321003565,1711741834112,-347.71,0.00050809,30]
[321003566,1711741834121,-518.1,0.00050809,30]
[321003567,1711741834131,-347.71,0.00050809,30]
[321003568,1711741834140,-518.1,0.00050809,30]
[321003569,1711741834149,-347.71,0.00050809,30]
[321003570,1711741834160,-347.71,0.00050809,30]
[321003571,1711741834170,-518.1,0.00050809,30]
[321003572,1711741834179,-347.71,0.00050809,30]
[321003573,1711741834188,-347.71,0.00050809,30]
[321003574,1711741834198,-518.1,0.00050809,30]
[321003575,1711741834207,-347.71,0.00050809,30]
[321003576,1711741834418,-518.1,0.00050809,30]
[321003577,1711741834428,-347.71,0.00050809,30]
[321003578,1711741834438,-518.1,0.00050809,30]
[321003579,1711741834447,-347.71,0.00050809,30]
[321003580,1711741834456,-518.1,0.00050809,30]
[321003581,1711741834466,-347.71,0.00050809,30]
[321003582,1711741834476,-347.71,0.00050809,30]
[321003583,1711741834485,-347.71,0.00050809,30]
[321003584,1711741834494,-347.71,0.00050809,30]
[321003585,1711741834502,-196.17,0.00050809,30]
[321003586,1711741834511,-222.98,0.00050809,30]
[321003587,1711741834519,-150.0,0.00050809,30]
[321003588,1711741834528,-150.0,0.00050809,30]
[321003589,1711741834537,-150.0,0.00050809,30]
[321003590,1711741834546,-150.0,0.00050809,30]
[321003591,1711741834555,-150.0,0.00050809,30]
[321003592,1711741834565,-150.0,0.00050809,30]
[321003593,1711741834575,-150.0,0.00050809,30]
[321003594,1711741834584,-518.1,0.00050825,30]
[321003595,1711741834596,-347.71,0.00050825,30]
[321003596,1711741834607,-925.23,0.00050825,30]
[321003597,1711741834617,-518.1,0.00050825,30]
[321003598,1711741834626,-347.71,0.00050825,30]
[321003599,1711741834635,-925.23,0.00050825,30]
[321003600,1711741834645,-347.71,0.00050825,30]
[321003601,1711741834654,-925.23,0.00050825,30]
[321003602,1711741834663,-409.62,0.00050825,30]
[321003603,1711741834674,-518.1,0.00050825,30]
[321003604,1711741834683,-347.71,0.00050825,30]
[321003605,1711741834692,-518.1,0.00050825,30]
[321003606,1711741834701,-925.23,0.00050825,30]
[321003607,1711741834710,-347.71,0.00050825,30]
[321003608,1711741834719,-925.23,0.00050825,30]
[321003609,1711741834728,-409.62,0.00050825,30]
[321003610,1711741834740,-925.23,0.00050825,30]
[321003611,1711741834750,-347.71,0.00050825,30]
[321003612,1711741834760,-925.23,0.00050825,30]
[321003613,1711741834769,-347.71,0.00050825,30]
[321003614,1711741834779,-409.62,0.00050825,30]
[321003615,1711741834788,-347.71,0.00050825,30]
[321003616,1711741834798,-925.23,0.00050825,30]
[321003617,1711741834808,-517.1,0.00050825,30]
[321003618,1711741834819,-921.45,0.00050825,30]
[321003619,1711741834829,-344.38,0.00050825,30]
[321003620,1711741834839,-408.34,0.00050825,30]
[321003621,1711741834847,-150.0,0.00050867,7]
[321003622,1711741834858,-23977.19299553,0.000509,120]
[321003623,1711741834867,-200.0,0.000509,18]
[321003624,1711741834876,-150.0,0.0005091,7]
[321003625,1711741834885,-150.0,0.00050936,7]
[321003626,1711741834894,-1394.15700575,0.00050985,7]
[321003627,1711741834903,-150.0,0.00051001,7]
[321003628,1711741834913,-150.0,0.00051023,7]
[321003629,1711741834921,-150.0,0.0005103,7]
[321003630,1711741834930,-150.0,0.00051064,7]
[321003631,1711741834939,-150.0,0.00051109,7]
[321003632,1711741834948,-150.0,0.00051114,7]
[321003633,1711741834958,-10480.55769424,0.00051119,7]
[321003634,1711741834967,-150.0,0.0005116,7]
[321003635,1711741834975,-150.0,0.0005116,7]
[321003636,1711741834985,-150.0,0.00051172,7]
[321003637,1711741834994,-150.0,0.00051183,7]
[321003638,1711741835003,-180.0,0.00051193,120]
[321003639,1711741835012,-150.0,0.000512,10]
[321003640,1711741835021,-152.37906724,0.00051214,60]
[321003641,1711741835031,-519.46,0.00051223,2]
[321003642,1711741835040,-150.0,0.00051232,7]
[321003643,1711741835050,-228.585643,0.00051241,30]
[321003644,1711741835059,-624.607561,0.00051241,30]
[321003645,1711741835069,-150.0,0.00051259,7]
[321003646,1711741835079,-150.0,0.00051265,7]
[321003647,1711741835088,-310.92142986,0.00051275,2]
[321003648,1711741835098,-205.31858086,0.00051313,2]
[321003649,1711741835107,-5743.54502976,0.00051351,2]
[321003650,1711741835117,-156.01520204,0.00051354,2]
[321003651,1711741835126,-368.49044151,0.00051361,2]
[321003652,1711741835136,-186130.66268162,0.00051364,2]
[321003653,1711741835158,-1909.18050157,0.00051364,2]
[321003697,1711741838113,-540.95033333,0.00048426,2]
[321003698,1711741838123,-56960.15681681,0.00051364,2]
[321003699,1711741838133,-24627.93041131,0.00051375,2]
[321003700,1711741838146,-5000.0,0.000514,120]
[321003701,1711741838155,-151.0,0.00051425,120]
[321003702,1711741838165,-1500.0,0.00051437,7]
[321003704,1711741838175,-150.0,0.00051443,7]
[321003707,1711741838184,-150.0,0.0005145,7]
[321003709,1711741838194,-212.0,0.00051452,2]
[321003711,1711741838203,-2422.0,0.00051464,120]
[321003712,1711741838213,-493.468,0.00051464,120]
[321003715,1711741838222,-1416.213,0.00051464,120]
[321003717,1711741838231,-962.0,0.00051464,120]
[321003719,1711741838240,-1226.0,0.00051464,120]
[321003721,1711741838250,-1253.0,0.00051464,120]
[321003723,1711741838259,-150.0,0.00051464,120]
[321003725,1711741838268,-544.352,0.00051464,120]
[321003727,1711741838278,-1268.0,0.00051464,120]
[321003729,1711741838287,-279.0,0.00051464,120]
[321003731,1711741838296,-659.743,0.00051464,120]
[321003733,1711741838306,-433.0,0.00051464,120]
[321003735,1711741838316,-803.0,0.00051464,120]
[321003737,1711741838325,-1154.797,0.00051464,120]
[321003739,1711741838334,-396.0,0.00051464,120]
[321003741,1711741838343,-2983.0,0.00051464,120]
[321003744,1711741838352,-1496.336,0.00051464,120]
[321003747,1711741838362,-211.075,0.00051464,120]
[321003749,1711741838371,-152.166,0.00051464,120]
[321003750,1711741838380,-2425.0,0.00051464,120]
[321003753,1711741838390,-1664.627,0.00051464,120]
[321003755,1711741838399,-197.0,0.00051464,2]
[321003757,1711741838408,-227.0,0.00051464,2]
[321003759,1711741838419,-4775.0,0.00051464,120]
[321003761,1711741838429,-1177.0,0.00051464,120]
[321003763,1711741838438,-5685.0,0.00051464,120]
[321003765,1711741838447,-42999.0,0.00051464,120]
[321003767,1711741838456,-2451.0,0.00051464,120]
[321003769,1711741838466,-165.49,0.00051464,120]
[321003771,1711741838477,-150.0,0.00051464,120]
[321003773,1711741838486,-1047.0,0.00051464,120]
[321003775,1711741838495,-158.0,0.00051464,2]
[321003777,1711741838505,-168.77,0.0005147,2]
[321003779,1711741838515,-36117.7925622,0.0005148,2]
[321003781,1711741838525,-150.0,0.00051499,7]
[321003783,1711741838534,-2562.58,0.000515,7]
[321003785,1711741838543,-2562.58,0.000515,7]
[321003787,1711741838553,-2562.58,0.000515,7]
[321003789,1711741838562,-2562.58,0.000515,7]
[321003791,1711741838571,-2562.58,0.000515,7]
[321003793,1711741838582,-2562.58,0.000515,7]
[321003795,1711741838591,-2562.58,0.000515,7]
[321003797,1711741838603,-2562.58,0.000515,7]
[321003799,1711741838613,-2562.58,0.000515,7]
[321003801,1711741838622,-2562.58,0.000515,7]
[321003803,1711741838631,-2562.58,0.000515,7]
[321003805,1711741838642,-2562.58,0.000515,7]
[321003807,1711741838652,-2562.58,0.000515,7]
[321003809,1711741838662,-2562.58,0.000515,7]
[321003811,1711741838672,-2562.58,0.000515,7]
[321003813,1711741838681,-2562.58,0.000515,7]
[321003815,1711741838691,-2562.58,0.000515,7]
[321003817,1711741838701,-2562.58,0.000515,7]
[321003819,1711741838711,-2562.58,0.000515,7]
[321003821,1711741838720,-2562.58,0.000515,7]
[321003823,1711741838730,-153.47,0.000515,7]
[321003825,1711741838739,-153.47,0.000515,7]
[321003826,1711741838748,-153.47,0.000515,7]
[321003827,1711741838758,-153.47,0.000515,7]
[321003828,1711741838767,-153.47,0.000515,7]
[321003829,1711741838778,-153.47,0.000515,7]
[321003830,1711741838787,-153.47,0.000515,7]
[321003831,1711741838797,-153.47,0.000515,7]
[321003832,1711741838806,-150.0,0.00051524,7]
[321003833,1711741838817,-150.0,0.00051534,7]
[321003834,1711741838826,-150.0,0.00051549,7]
[321003835,1711741838835,-150.0,0.00051557,7]
[321003836,1711741838845,-150.0,0.00051567,7]
[321003837,1711741838854,-1771.0,0.000516,120]
[321003838,1711741838865,-1000.0,0.00051603,68]
[321003839,1711741838875,-150.0,0.00051611,7]
[321003840,1711741838885,-150.0,0.00051632,7]
[321003841,1711741838894,-150.0,0.00051635,7]
[321003842,1711741838903,-150.0,0.00051636,7]
[321003843,1711741838913,-150.0,0.00051641,7]
[321003844,1711741838922,-200.0,0.0005168,30]
[321003845,1711741838932,-150.0,0.00051694,7]
[321003846,1711741838942,-150.0,0.000517,10]
[321003847,1711741838951,-500.0,0.000517,18]
[321003848,1711741838971,-800.0,0.00051729,30]
[321003849,1711741838981,-150.0,0.00051739,7]
[321003850,1711741838991,-150.0,0.00051741,7]
[321003851,1711741839001,-150.0,0.00051747,7]
[321003852,1711741839010,-150.0,0.00051749,7]
[321003853,1711741839020,-150.0,0.00051754,7]
[321003854,1711741839030,-150.0,0.00051773,7]
[321003855,1711741839040,-200.0,0.00051779,30]
[321003856,1711741839049,-150.0,0.00051784,7]
[321003857,1711741839059,-150.0,0.00051799,7]
[321003858,1711741839069,-700.0,0.000518,18]
[321003859,1711741839079,-150.0,0.00051802,7]
[321003860,1711741839089,-150.0,0.00051806,7]
[321003861,1711741839100,-152.90997699,0.00051807,7]
[321003862,1711741839110,-150.0,0.00051809,7]
[321003863,1711741839119,-150.0,0.00051814,7]
[321003864,1711741839129,-150.0,0.00051855,7]
[321003865,1711741839139,-150.0,0.00051857,7]
[321003866,1711741839149,-150.0,0.00051866,7]
[321003867,1711741839159,-150.0,0.0005187,7]
[321003868,1711741839169,-200.0,0.00051878,30]
[321003869,1711741839179,-800.0,0.00051878,30]
[321003870,1711741839189,-200.0,0.00051878,30]
[321003871,1711741839199,-150.0,0.00051878,7]
[321003872,1711741839209,-624.607561,0.00051882,30]
[321003873,1711741839219,-150.0,0.00051883,7]
[321003874,1711741839230,-168.77,0.0005189,2]
[321003875,1711741839240,-23201.178449,0.000519,2]
[321003876,1711741839251,-162.20300942,0.000519,2]
[321003877,1711741839261,-152.37853173,0.000519,51]
[321003878,1711741839271,-189580.83181257,0.000519,25]
[321003879,1711741839302,-645.18060482,0.000519,25]
[321003880,1711741840284,-7319.05738083,0.000519,25]
[321003881,1711741840296,-1024.70874345,0.000519,25]
[321003882,1711741840308,-3478.135,0.000519,25]
[321003886,1711741842969,-540.95033333,0.00049859,2]
[321003887,1711741842979,-153.555,0.00051464,120]
[321003888,1711741842989,-5223.2646085,0.000519,25]
[321003889,1711741843027,-3334.49999845,0.000519,25]
[321003900,1711741869812,179.8068998,0.00025,2]
[321003901,1711741869839,621750.30956803,0.00025,2]
[321003902,1711741869873,2304141.55251055,0.00025,2]
[321003903,1711741871887,2060.30003714,0.000154,2]
[321003905,1711741881095,527.40543036,9e-05,2]
[321003906,1711741892834,1258.84831319,0.0001,2]
[321003907,1711741916352,27745.07410245,6.94e-05,2]
[321003909,1711742040567,2177293.85818237,0.00025,2]
[321003917,1711742256663,-155.0,0.00036998,4]
[321003918,1711742256684,-9432.0,0.00036999,4]
[321003922,1711742524438,-1404.27994842,0.00036257,4]
[321003923,1711742524460,-19262.6564374,0.00036988,4]
[321003924,1711742524480,-8045.19849355,0.00036989,2]
[321003925,1711742524501,-293.7,0.0003699,2]
[321003926,1711742524522,-293.7,0.0003699,2]
[321003927,1711742524543,-87891.02370405,0.00036999,4]
[321003928,1711742524564,-205.0,0.00037,2]
[321003929,1711742524585,-93474.44141658,0.00037,4]
[321003932,1711742750111,-250.0,0.00033,3]
[321003933,1711742750131,-277.22878629,0.00036894,2]
[321003934,1711742842088,-300.0,0.000366,13]
[321003935,1711742842109,-700.0,0.000367,13]
[321003936,1711742842128,-898.54083325,0.00036799,4]
[321003937,1711742842149,-168.46508717,0.000368,8]
[321003938,1711742842170,-152.29762086,0.000368,2]
[321003939,1711742842192,-589.0558032,0.000368,13]
[321003954,1711742946181,-3356.84328471,0.00035053,4]
[321003955,1711742946202,-3540.2846752,0.00036722,4]
[321003956,1711742946222,-1500.0,0.00036723,2]
[321003957,1711742946244,-293.32,0.00036734,2]
[321003958,1711742946264,-412.74637218,0.00036793,4]
[321003959,1711742946285,-157.22323779,0.00036794,2]
[321003960,1711742946306,-157.22323779,0.00036796,2]
[321003961,1711742946325,-1666.8918526,0.00036797,4]
[321003962,1711742946347,-157.22323779,0.00036798,2]
[321003963,1711742946369,-510.9441968,0.000368,13]
[321003964,1711742946389,-183.64012445,0.000368,2]
[321003965,1711742946409,-157.22323779,0.000368,2]
[321003966,1711742946429,-1855.63966889,0.000368,2]
[321003967,1711742946449,-187.32076796,0.000368,2]
[321003968,1711742946468,-313.80481144,0.000368,2]
[321003969,1711742946488,-150.5,0.0003687,15]
[321003970,1711742946508,-150.5,0.0003687,15]
[321003971,1711742946528,-150.5,0.0003688,15]
[321003972,1711742946548,-150.5,0.0003688,15]
[321003973,1711742946568,-996.05,0.00036885,2]
[321003974,1711742946589,-150.5,0.0003689,15]
[321003975,1711742946609,-150.5,0.0003689,15]
[321003976,1711742946631,-5853.10426213,0.00036894,2]
[321003977,1711742946649,-23637.44249595,0.00036897,2]
[321003978,1711742946668,-271.57085212,0.00036898,4]
[321003979,1711742946688,-487.96220756,0.00036898,4]
[321003980,1711742946707,-155.59801524,0.00036898,4]
[321003981,1711742946726,-207.57442402,0.00036898,4]
[321003982,1711742946746,-639.73539017,0.00036898,4]
[321003983,1711742946766,-155.0,0.00036898,4]
[321003984,1711742946785,-223.56150393,0.00036898,4]
[321003985,1711742946804,-155.81317132,0.00036898,4]
[321003986,1711742946824,-376.29834861,0.00036898,4]
[321003987,1711742946843,-155.52093473,0.00036898,2]
[321003988,1711742946862,-246.74461914,0.00036898,4]
[321003989,1711742946881,-1243.86637841,0.00036898,4]
[321003990,1711742946900,-155.20235387,0.00036898,4]
[321003991,1711742946923,-155.59569249,0.00036898,4]
[321003992,1711742946943,-357.46419469,0.00036898,4]
[321003993,1711742946963,-155.0,0.00036898,4]
[321003994,1711742946983,-218.05642744,0.00036898,4]
[321003995,1711742947005,-500.0,0.00036898,4]
[321003996,1711742947023,-155.51904245,0.00036898,4]
[321003997,1711742947041,-155.77449261,0.00036898,4]
[321003998,1711742947060,-256.72185983,0.00036898,4]
[321003999,1711742947079,-300.0,0.00036899,10]
[321004000,1711742947099,-300.0,0.00036899,10]
[321004001,1711742947118,-128343.0346279,0.000369,2]